Cogmind - Beta 10.2 *** ADVENTURER MODE // 2020.12.28 @ 11:37:21 Player: Yog-Sothoth Result: Self-destructed Performance ------------- Evolutions (1) 500 Regions Visited (2) 400 Robots Destroyed (37) 185 Value Destroyed (809) 809 Prototype IDs (3) 60 Alien Tech Used (0) 0 Bonus (0) 0 TOTAL SCORE: 1954 Bonus ------- None Cogmind --------- Core Integrity 369/400 Matter 210/300 Energy 148/280 System Corruption 0% Temperature Cool (42) Movement Treading (160) Location -9/Materials Parts ------- > --- POWER (1) -------- Heavy Ion Engine > --- PROPULSION (3) --- Light Treads Light Treads Light Treads > --- UTILITY (3) ------ High-capacity Storage Unit Sensor Array Improved Signal Interpreter > --- WEAPON (2) ------- Heavy Assault Rifle Shock Bomb Launcher > --- INVENTORY (12) --- Improved Ion Engine Heavy Ion Engine VTOL Module Improved Flight Unit Faulty Improved Flight Unit Salvage Targeting Computer Improved Targeting Computer Improved ECM Suite Improved ECM Suite Beam Cannon Beam Cannon Shock Bomb Launcher Peak State ------------ > --- POWER ------------ Heavy Ion Engine > --- PROPULSION ------- Light Treads Light Treads Light Treads > --- UTILITY ---------- High-capacity Storage Unit Sensor Array Signal Interpreter > --- WEAPON ----------- Shock Bomb Launcher Shock Bomb Launcher > --- INVENTORY -------- Improved Ion Engine Heavy Ion Engine Light Treads Improved Flight Unit Improved Flight Unit Heat Sink Improved Targeting Computer Improved ECM Suite Beam Cannon Beam Cannon Grenade Launcher [Rating: 17] Favorites ----------- Power Ion Engine Engine Ion Engine Propulsion Light Treads Treads Light Treads Wheel Wheel Utility High-capacity Storage Unit Device Sensor Array Storage High-capacity Storage Unit Processor Signal Interpreter Weapon Beam Cannon Energy Gun Small Laser Energy Cannon Beam Cannon Ballistic Gun Heavy Assault Rifle Launcher Grenade Launcher Build | -11 -10 -9 ------- Run | Scr Mat Mat Slots Evolved 2 | . . 2 Power . | . . . Propulsion 1 | . . 1 Utility 1 | . . 1 Weapon . | . . . Parts Attached 27 | 6 8 13 Power 4 | 1 1 2 Engine 4 | 1 1 2 Core . | . . . Reactor . | . . . Propulsion 7 | 2 2 3 Treads 5 | . 2 3 Leg . | . . . Wheel 2 | 2 . . Hover . | . . . Flight . | . . . Utility 7 | 1 3 3 Device 3 | . 1 2 Storage 2 | 1 1 . Processor 2 | . 1 1 Hackware . | . . . Protection . | . . . Artifact . | . . . Weapon 9 | 2 2 5 Energy Gun 3 | 2 . 1 Energy Cannon 1 | . 1 . Ballistic Gun 2 | . . 2 Ballistic Cannon . | . . . Launcher 3 | . 1 2 Special Weapon . | . . . Impact Weapon . | . . . Slashing Weapon . | . . . Piercing Weapon . | . . . Special Melee Weapon . | . . . Unidentified Prototypes . | . . . Parts Lost . | . . . Power . | . . . Propulsion . | . . . Utility . | . . . Weapon . | . . . Highest Loss Streak . | . . . Average Slot Usage (%) 96 | . 94 97 Engine 12 | . 14 11 Treads 28 | . 25 30 Wheel 1 | . 2 . Device 10 | . 9 11 Storage 12 | . 14 11 Processor 6 | . 1 11 Energy Gun 5 | . 11 . Energy Cannon 6 | . 5 7 Ballistic Gun 3 | . . 6 Launcher 8 | . 9 7 Naked Turns . | . . . Heaviest Build 53 | 9 44 53 Greatest Support 60 | 20 40 60 Greatest Overweight (x) 1 | . 1 1 Average Overweight (x) . | . . . Largest Inventory Capacity 14 | 6 14 12 Average Capacity 11 | 5 11 12 Most Carried 12 | 3 6 12 Average Carried 6 | 1 3 9 Final Capacity 12 | 6 12 12 Final Carried 12 | 3 6 12 Class Distribution -------------------- 60% | Mutant 39% | Scavenger-Mutant Dominant Class ---------------- Mutant | -10/Materials Scavenger-Mutant | -9/Materials Resources | -11 -10 -9 ----------- Run | Scr Mat Mat Matter Collected 567 | 233 107 227 Remotely . | . . . Salvage Created 1241 | . 204 1037 Parts 97 | . 20 77 Haulers Intercepted 2 | . . 2 Recyclers Shooed . | . . . Parts Field Recycled . | . . . Retrieved Matter . | . . . Parts Self-Destructed . | . . . Prevented . | . . . Kills | -11 -10 -9 ------- Run | Scr Mat Mat Combat Hostiles Destroyed 23 | . 7 16 Guns 11 | . 7 4 Cannons 3 | . . 3 AOE 9 | . . 9 Classes Destroyed 8 | . 3 5 Worker 1 | . . 1 Builder 3 | . . 3 Hauler 2 | . . 2 Recycler 2 | . . 2 Watcher 6 | . 2 4 Swarmer 8 | . 5 3 Grunt 13 | . 2 11 Sentry 2 | . . 2 Best Kill Streak 9 | . 6 9 Combat Bots Only 5 | . 5 4 Max Kills in Single Turn 4 | . 2 4 Gunslinging 1 | . 1 . Exploded 2 | . . 2 Melee . | . . . Uniques/NPCs Destroyed . | . . . Combat | -11 -10 -9 -------- Run | Scr Mat Mat Damage Taken 654 | . 156 498 Core 54 | . 23 31 Absorbed by Shields . | . . . Core Remaining (%) 95 | 100 90 . Volleys Fired 67 | . 21 46 Largest 2 | . 2 2 Hottest 92 | . 80 92 Shots Fired 106 | . 33 73 Gun 70 | . 32 38 Cannon 20 | . 1 19 Launcher 16 | . . 16 Special . | . . . Kinetic 34 | . . 34 Thermal 56 | . 33 23 Explosive 1 | . . 1 Electromagnetic 15 | . . 15 Robot Hit Streak 18 | . 18 17 Robot Miss Streak 2 | . 2 1 Penetration Max . | . . . Secondary Targets 1 | . 1 . Max Gunslinging Chain 1 | . 1 . Shots Hit Robots 88 | . 29 59 Core Hits 52 | . 13 39 Critical Hits . | . . . Critical Kills . | . . . Critical Parts Destroyed . | . . . Melee Attacks . | . . . Impact . | . . . Slashing . | . . . Piercing . | . . . Sneak Attacks . | . . . Combat Hostiles . | . . . Follow-up Attacks . | . . . Damage Inflicted 1961 | . 286 1675 Guns 721 | . 269 452 Cannons 246 | . 17 229 Explosions 994 | . . 994 Melee . | . . . Ramming . | . . . Kinetic 408 | . . 408 Thermal 805 | . 286 519 Explosive 21 | . . 21 Electromagnetic 727 | . . 727 Impact . | . . . Slashing . | . . . Piercing . | . . . Highest Corruption . | . . . Average Corruption . | . . . Corruption Purged . | . . . Overload Shots . | . . . Overflow Damage 91 | . . 91 Projectiles . | . . . Explosions 91 | . . 91 Melee . | . . . Knockbacks . | . . . Impact . | . . . Kinetic . | . . . Secondary . | . . . Self-Inflicted Damage 57 | . . 57 Shots 7 | . . 7 Rammed . | . . . Targets Rammed . | . . . Kicked . | . . . Crushed . | . . . Highest Temperature 265 | . 265 75 Average Temperature 65 | . 122 29 Received Heat Transfer 246 | . 87 159 Siege Activations . | . . . Robots Corrupted . | . . . Combat Hostiles . | . . . Parts Fried 5 | . . 5 Impact Corruptions . | . . . Robots Melted . | . . . Combat Hostiles . | . . . Parts Melted 2 | . 2 . Heat Transferred 1604 | . 662 942 Parts Sabotaged . | . . . Parts Stolen . | . . . Parts Stripped . | . . . Power Chain Reactions 6 | . . 6 Missiles Intercepted . | . . . Alert | -11 -10 -9 ------- Run | Scr Mat Mat Peak Influence 365 | . 258 365 Initial 28 | . . 28 Average 108 | . 110 114 Maximum Alert Level 1 | . 1 1 Low Security (%) 88 | 100 94 82 Level 1 11 | . 5 17 Level 2 . | . . . Level 3 . | . . . Level 4 . | . . . Level 5 . | . . . High Security . | . . . Max Security . | . . . Squads Dispatched 4 | . 1 3 Investigation 2 | . 1 1 Extermination . | . . . Reinforcement 2 | . . 2 Assault . | . . . Garrison . | . . . Intercept . | . . . Construction Impeded 1 | . . 1 Haulers Reinforced . | . . . Stealth | -11 -10 -9 --------- Run | Scr Mat Mat Distress Signals 5 | . 2 3 Communications Jammed . | . . . Distress Signals . | . . . Times Spotted 38 | . 12 26 Peak Tracking Total 6 | . 4 6 Tactical Retreats 3 | . 1 2 Traps | -11 -10 -9 ------- Run | Scr Mat Mat Traps Triggered 3 | . 1 2 Indirectly . | . . . Trap Hack Attempts . | . . . Triggered . | . . . Disarmed 2 | . 2 . Reprogrammed . | . . . Reused . | . . . Traps Extracted . | . . . Installed . | . . . Triggered . | . . . Machines | -11 -10 -9 ---------- Run | Scr Mat Mat Machines Disabled 3 | . . 3 Max in Single Turn 1 | . . 1 Machines Sabotaged . | . . . Garrisons Compromised . | . . . Overloaded Fab Kills . | . . . Fab Network Shutdowns . | . . . Hacking | -11 -10 -9 --------- Run | Scr Mat Mat Machines Accessed 6 | . 4 2 Terminals 4 | . 3 1 Fabricators . | . . . Repair Stations . | . . . Recycling Units 2 | . 1 1 Scanalyzers . | . . . Garrison Access . | . . . Total Hacks 18 | . 13 5 Successful 14 | . 9 5 Failed 4 | . 4 . Catastrophic 1 | . 1 . Database Lockouts . | . . . Manual . | . . . Terminals 15 | . 12 3 Fabricators . | . . . Repair Stations . | . . . Recycling Units 3 | . 1 2 Scanalyzers . | . . . Garrison Access . | . . . Terminal Hacks 11 | . 8 3 Prototype ID Bank 2 | . 1 1 Alert Level 1 | . . 1 Locate Traps 2 | . 2 . Disarm Traps 1 | . 1 . Patrol Status 1 | . . 1 Transport Status 1 | . 1 . Hauler Manifests 1 | . 1 . Registered Components 1 | . 1 . Zone Layout 1 | . 1 . Fabricator Hacks . | . . . Repair Station Hacks . | . . . Recycling Unit Hacks 3 | . 1 2 Report Inventory 2 | . 1 1 Retrieve Components 1 | . . 1 Scanalyzer . | . . . Garrison Access Hacks . | . . . Unauthorized Hacks . | . . . Terminals . | . . . Fabricators . | . . . Repair Stations . | . . . Recycling Units . | . . . Scanalyzers . | . . . Garrison Access . | . . . Data Cores Recovered . | . . . Used . | . . . Hacking Detections 3 | . 2 1 Full Trace Events . | . . . Feedback Events . | . . . Feedback Blocked . | . . . Robot Schematics Acquired . | . . . Robots Built . | . . . Matter . | . . . Time . | . . . Total Robot Build Rating . | . . . Part Schematics Acquired . | . . . Parts Built . | . . . Matter . | . . . Time . | . . . Total Part Build Rating . | . . . Parts Repaired . | . . . Time . | . . . Parts Recycled . | . . . Recycled Matter . | . . . Retrieved Matter . | . . . Retrieved Components 1 | . . 1 Parts Scanalyzed . | . . . Part Schematics Acquired . | . . . Parts Damaged . | . . . Bothacking | -11 -10 -9 ------------ Run | Scr Mat Mat Used RIF Installer . | . . . Robots Hacked . | . . . Non-combat . | . . . Combat . | . . . Robot Hacks Applied . | . . . Relay Couplers Released . | . . . Robots Rewired . | . . . Allies Hacked . | . . . Hacks Repelled . | . . . Allies | -11 -10 -9 -------- Run | Scr Mat Mat Total Allies . | . . . Largest Group . | . . . Highest-Rated Group . | . . . Highest-Rated Ally . | . . . Total Orders . | . . . Ally Attacks . | . . . Total Damage . | . . . Kills . | . . . Allies Corrupted . | . . . Allies Melted . | . . . Intel | -11 -10 -9 ------- Run | Scr Mat Mat Robot Analysis Total . | . . . Derelict Logs Recovered . | . . . Drone Launches . | . . . Drone Recoveries . | . . . Exploration | -11 -10 -9 ------------- Run | Scr Mat Mat Turns Passed 1564 | 60 640 864 Spaces Moved 758 | 54 345 359 Core 3 | 3 . . Treads 638 | . 279 359 Legs . | . . . Wheels 117 | 51 66 . Hover . | . . . Flight . | . . . Fastest Speed 50 | 50 80 160 Average Speed 154 | 78 156 163 Slowest Speed 180 | 80 180 180 Overloaded Moves . | . . . Propulsion Burnouts . | . . . Robots Hopped . | . . . Cave-ins Triggered . | . . . Exploration Rate (%) 34 | 4 64 35 Regions Visited 2 Branch Regions . Pre-discovered Areas . | . . . Known Exits Taken 1 | . 1 . Unknown Exits Taken 1 | 1 . . Scrap Searched . | . . . Spaces Dug . | . . . Terrain Destroyed 23 | . . 23 Melee . | . . . Projectile . | . . . AOE 23 | . . 23 Terrain Rammed . | . . . Walls Destroyed . | . . . Machines Disabled . | . . . Actions | -11 -10 -9 --------- Run | Scr Mat Mat Total 1041 | 68 411 562 Wait 154 | 5 28 121 Move 756 | 53 344 359 Hop . | . . . Pick Up 20 | 4 6 10 Fast Attach 12 | 5 2 5 Attach 3 | 1 1 1 Detach 1 | . . 1 Swap 12 | . 5 7 Drop 16 | . 4 12 Fire 67 | . 21 46 Melee . | . . . Ram . | . . . Kick . | . . . Crush . | . . . Escape Stasis . | . . . Rewire . | . . . Trap . | . . . Miscellaneous . | . . . Route ------- -11/Scrapyard -10/Materials (discovered 2 exits: *Mat / [*Min]) -9/Materials (discovered 1 exit: [*Mat]) History --------- Turn | Location | Event 11 | -11/Scrapyard | Discovered new exit (range 15) 61 | -11/Scrapyard | Entered Materials 309 | -10/Materials | Build established: Mutant 502 | -10/Materials | Discovered new exit (range 8) 644 | -10/Materials | Discovered new exit (range 5) 653 | -10/Materials | Identified exit to Materials 701 | -10/Materials | Entered another Materials area 701 | -9/Materials | Evolved 2 slots: Propulsion x1, Utility x1 1125 | -9/Materials | Discovered new exit (range 15) 1199 | -9/Materials | Build established: Scavenger-Mutant 1565 | -9/Materials | Self-destructed Last Messages --------------- Destroyed Welding Torch. Chain reaction triggered in Lgt. Ion Engine. Destroyed Welding Torch. Structural Scanner fried. Wheel fried. Terrain Scanner fried. U-05 Engineer destroyed. G-34 Mercenary destroyed. Terrain Scanner fried. U-05 Engineer destroyed. Chain reaction triggered in Ion Engine. K-01 Serf collects debris. G-34 Mercenary destroyed. Chain reaction triggered in Ion Engine. A-02 Transporter destroyed. K-01 Serf collects debris. G-34 Mercenary misfires. K-01 Serf collects debris. Destroyed Sml. Laser. K-01 Serf collects debris. Map ----- +----------------------------------------------------+ | ?????????????????########## # """ #??????? | | ?????????????????# | # # #??????? | | ?????????????????# # # #??????? | | ???????????####### # # #??????? | | ???????????# # # #######??????? | | ???????????# # """ # #????????????? | | ???????????# # """"" # #????????????? | | ???????????# """ # """"" # #####????????? | | ?########### """ + """"" + [] #????????? | | ?# ## """ # """ # ]]#????????? | | ?# ## ##########[[ !!#????????? | | ?# """ ####+### #### %= !!#????????? | | ?# """"" # =* * ! #????????? | | ?# """""]/ =!=[ [ ! #????????? | | ?# """"" # % %[ = #####????????? | | ?# """ ####+###= ! ########????????????? | | ?# ## ##[%=##???????????????????? | | ?# / ## """ ## ##???????????????????? | | ?########### """ ## ;#???????????????????? | | ???????????# """ ## k;#???????????????????? | | ???????????# # [k;#???????????????????? | | ???????????###+#### % #???????????????????? | | ???????????# g # % ########????????????? | | ???????????# ! t * """???????????? | | ???????????# ! =% T""???????????? | | ???????????# =#@ %= =[* ????????? | | ???????????# / l= = k% #????????? | | ???????????# =%% #????????? | | ???????????####### == g a ?????????? | | ?????????????????## =[[ ?????????? | | ??????????????????]! =% ??????????? | | ????????????Y?????%] %###########??????????? | | ??????????????????]] #????????????????????? | | ??????????????????#####????????????????????? | | ???????????????????????????????????????????? | | ???????????????????????????????????????????? | | ???????????????????????????????????????????? | | ???????????????????????????????????????????? | | ???????????????????????????????????????????? | | ???????????????????????????????????????????? | | ???????????????????????????????????????????? | | ???????????????????????????????????????????? | | ???????????????????????????????????????????? | | ???????????????????????????????????????????? | | ???????????????????????????????????????????? | | ???????????????????????????????????????????? | | ???????????????????????????????????????????? | | ???????????????????????????????????????????? | | ???????????????????????????????????????????? | | ???????????????????????????????????????????? | +----------------------------------------------------+ Best States ------------- Heat Dissipation 28 Energy Generation 14 Energy Capacity 280 Matter Stores 300 Matter Capacity 300 Sight Range 16 Robot Scan Range 10 Terrain Scan Density 10 Resistance: KI 20 Resistance: TH 20 Resistance: EX 20 Resistance: EM 20 Resistance: I 20 Resistance: S 20 Resistance: P 20 Evasion (%) 44 Recoil Reduction 3 Offensive Hacking 10 Item Schematics ----------------- None Robot Schematics ------------------ None Fabricated ------------ Nothing Alien Tech Used ----------------- None Achievements -------------- None Challenges ------------ None Game ------ Seed SpreadEtherialDissipator Manual? 0 Play Time 00:22:27 Cumulative 2.6 hours Start 2020.12.27 @ 20:04:13 End 2020.12.28 @ 11:37:21 Sessions 3 Manual Loads 0 Difficulty Adventurer Special Mode None Game No. 10 Rogue 0 Adventurer 10 Explorer 0 Win Type - Total 0 Types 0/0/0/0/0/0/0/0/0 Lore% 4 Gallery% 9 Achievement% 7 Wizard Run 0 Options --------- ASCII 0 Keyboard 0 Movement Mouse Keybinds 0 Fullscreen 2 Font 20/SmallcapsGlow Map View 66x50 Tactical HUD 0 Map Filters NONE Filters NONE Steam 1 RUN: 6a1b0eeb-8147-4908-b07a-b0040f8e66d9